fUST/lending_fUST_20240113
["ID","MTS","AMOUNT","RATE_DAILY","PERIOD"]
[311430225,1705096241446,-9030.16,0.00029789,2]
[311430226,1705096241455,-9030.16,0.00029789,2]
[311430227,1705096241464,-9030.16,0.00029789,2]
[311430228,1705096241474,-9030.16,0.00029789,2]
[311430229,1705096241483,-9030.16,0.00029789,2]
[311430230,1705096241492,-9030.16,0.00029789,2]
[311430231,1705096241501,-9030.16,0.00029789,2]
[311430232,1705096241510,-32524.54650858,0.0002979,7]
[311430233,1705096241522,-18549.999992,0.0002979,7]
[311430300,1705096246045,-150.0,0.00026605,2]
[311430301,1705096246054,-504.20120448,0.00027339,2]
[311430302,1705096246063,-1000.0,0.00029517,2]
[311430303,1705096246072,-1000.0,0.00029523,2]
[311430304,1705096246081,-197.98944552,0.00029531,2]
[311430390,1705097246105,-253.63683718,0.00026007,2]
[311430391,1705097246127,-2030.72904445,0.00026007,2]
[311430392,1705097246150,-154.9690062,0.00026008,4]
[311430393,1705097246173,-166.666666,0.00026565,2]
[311430394,1705097246195,-152.64236016,0.000272,2]
[311430395,1705097246217,-166.666666,0.00027289,2]
[311430396,1705097246244,-152.64236016,0.00027335,2]
[311430397,1705097246266,-500.0,0.00027338,2]
[311430398,1705097246289,-500.0,0.00027338,2]
[311430399,1705097246310,-156.70765642,0.00027338,2]
[311430400,1705097246333,-500.0,0.00027338,2]
[311430401,1705097246354,-500.0,0.00027338,2]
[311430402,1705097246376,-500.0,0.00027338,2]
[311430403,1705097246396,-442.19069985,0.00027338,2]
[311430404,1705097246417,-500.0,0.00027339,2]
[311430405,1705097246439,-500.0,0.00027339,2]
[311430406,1705097246460,-500.0,0.00027339,2]
[311430407,1705097246480,-500.0,0.00027339,2]
[311430408,1705097246503,-500.0,0.00027339,2]
[311430409,1705097246524,-500.0,0.00027339,2]
[311430410,1705097246544,-500.0,0.00027339,2]
[311430411,1705097246564,-500.0,0.00027339,2]
[311430412,1705097246585,-502.2899914,0.00027339,2]
[311430413,1705097246605,-227.76444057,0.00027339,2]
[311430414,1705097246625,-500.0,0.00027339,2]
[311430415,1705097246645,-458.50637181,0.00027339,2]
[311430416,1705097246668,-1601.35076407,0.00027441,3]
[311430417,1705097246689,-3419.88412223,0.00027441,3]
[311430418,1705097246710,-847.9718918,0.00027441,3]
[311430419,1705097246732,-500.0,0.00027612,2]
[311430420,1705097246755,-500.0,0.00027613,2]
[311430421,1705097246777,-500.0,0.00027613,2]
[311430422,1705097246798,-635.53581168,0.00027613,2]
[311430423,1705097246818,-500.0,0.00027613,2]
[311430424,1705097246838,-160.61660186,0.00027615,2]
[311430425,1705097246859,-1209.98622736,0.0002769,2]
[311430426,1705097246880,-176.475038,0.00027763,2]
[311430427,1705097246902,-174.640298,0.00027763,2]
[311430428,1705097246923,-164.641066,0.00027763,2]
[311430429,1705097246944,-184.13370995,0.00027887,2]
[311430430,1705097246965,-166.666666,0.00028014,2]
[311430431,1705097246990,-176.475038,0.00028226,2]
[311430432,1705097247011,-243.06203949,0.00028598,4]
[311430433,1705097247032,-300.0,0.000286,14]
[311430434,1705097247054,-152.64236016,0.00028633,2]
[311430435,1705097247077,-155.0,0.00028688,2]
[311430436,1705097247099,-176.475038,0.00028688,2]
[311430437,1705097247120,-166.666666,0.00028738,2]
[311430438,1705097247140,-312.36705392,0.00028749,2]
[311430439,1705097247162,-500.0,0.00028871,2]
[311430440,1705097247183,-6025.27531555,0.000289,18]
[311430441,1705097247203,-18828.38444506,0.000289,2]
[311430442,1705097247228,-1995.0,0.00028939,2]
[311430443,1705097247256,-799.75,0.00028939,2]
[311430444,1705097247280,-358.60852456,0.00028939,2]
[311430445,1705097247304,-509.40850234,0.00028939,2]
[311430446,1705097247327,-1000.0,0.00028939,7]
[311430447,1705097247350,-1000.0,0.00028939,7]
[311430448,1705097247372,-494.66708718,0.00028939,2]
[311430449,1705097247394,-1096.4891826,0.00028939,2]
[311430450,1705097247416,-1000.0,0.00028939,7]
[311430451,1705097247437,-160.61660186,0.00028963,2]
[311430452,1705097247458,-1109.91,0.00028989,3]
[311430453,1705097247479,-924.92,0.00028989,3]
[311430454,1705097247635,-1889.14392363,0.00028999,2]
[311430455,1705097247656,-500.0,0.00028999,2]
[311430456,1705097247676,-500.0,0.00028999,2]
[311430457,1705097247696,-500.0,0.00028999,2]
[311430458,1705097247716,-399.62867393,0.00028999,2]
[311430459,1705097247741,-500.0,0.00028999,2]
[311430460,1705097247760,-609.52637741,0.00028999,2]
[311430461,1705097247780,-500.0,0.00028999,2]
[311430462,1705097247800,-502.61811935,0.00028999,2]
[311430463,1705097247821,-500.0,0.00028999,2]
[311430464,1705097247843,-170.14017987,0.00028999,2]
[311430465,1705097247863,-500.0,0.00028999,2]
[311430466,1705097247883,-500.0,0.00028999,2]
[311430467,1705097247903,-500.0,0.00028999,2]
[311430468,1705097247923,-500.0,0.00028999,2]
[311430469,1705097247944,-602.1,0.00028999,2]
[311430470,1705097247964,-504.46218806,0.00028999,2]
[311430471,1705097247984,-500.0,0.00028999,2]
[311430472,1705097248009,-500.0,0.00028999,2]
[311430473,1705097248033,-500.0,0.00028999,2]
[311430474,1705097248055,-550.12,0.00028999,2]
[311430475,1705097248075,-500.0,0.00028999,2]
[311430476,1705097248095,-500.0,0.00028999,2]
[311430477,1705097248116,-407.75411898,0.00028999,2]
[311430478,1705097248137,-500.0,0.00028999,2]
[311430479,1705097248157,-500.0,0.00028999,2]
[311430480,1705097248178,-500.0,0.00028999,2]
[311430481,1705097248198,-500.0,0.00028999,2]
[311430482,1705097248219,-500.0,0.00028999,2]
[311430483,1705097248246,-500.0,0.00028999,2]
[311430484,1705097248270,-500.0,0.00028999,2]
[311430485,1705097248291,-3198.84,0.00028999,2]
[311430486,1705097248312,-500.0,0.00028999,2]
[311430487,1705097248335,-556.72323517,0.00028999,2]
[311430488,1705097248355,-500.0,0.00028999,2]
[311430489,1705097248375,-500.0,0.00028999,2]
[311430490,1705097248395,-500.0,0.00028999,2]
[311430491,1705097248417,-500.0,0.00028999,2]
[311430492,1705097248437,-500.0,0.00028999,2]
[311430493,1705097248457,-500.0,0.00028999,2]
[311430494,1705097248477,-500.0,0.00028999,2]
[311430495,1705097248505,-500.0,0.00028999,2]
[311430496,1705097248526,-500.0,0.00028999,2]
[311430497,1705097248547,-500.0,0.00028999,2]
[311430498,1705097248568,-500.0,0.00028999,2]
[311430499,1705097248589,-500.0,0.00028999,2]
[311430500,1705097248608,-500.0,0.00028999,2]
[311430501,1705097248628,-500.0,0.00028999,2]
[311430502,1705097248648,-155.06823002,0.00029,2]
[311430503,1705097248668,-2408.12387098,0.00029,2]
[311430504,1705097248687,-831.20840111,0.00029,2]
[311430505,1705097248707,-2033.64412158,0.00029,2]
[311430506,1705097248728,-176.475038,0.00029151,2]
[311430507,1705097248754,-174.640298,0.00029151,2]
[311430508,1705097248774,-153.0,0.00029178,2]
[311430509,1705097248795,-153.0,0.00029178,2]
[311430510,1705097248815,-153.0,0.00029178,2]
[311430511,1705097248839,-152.64236016,0.00029214,2]
[311430512,1705097248861,-1333.23,0.00029272,2]
[311430513,1705097248881,-500.0,0.00029273,2]
[311430514,1705097248900,-500.0,0.00029273,2]
[311430515,1705097248920,-500.0,0.00029273,2]
[311430516,1705097248939,-500.0,0.00029273,2]
[311430517,1705097248958,-503.86688486,0.00029273,2]
[311430518,1705097248977,-500.0,0.00029273,2]
[311430519,1705097249003,-520.31821242,0.00029273,2]
[311430520,1705097249023,-602.1,0.00029273,2]
[311430521,1705097249044,-528.6586103,0.00029273,2]
[311430522,1705097249065,-500.0,0.00029273,2]
[311430523,1705097249086,-550.12,0.00029273,2]
[311430524,1705097249107,-500.0,0.00029273,2]
[311430525,1705097249127,-283.42872033,0.00029273,2]
[311430526,1705097249148,-346.47463783,0.00029273,2]
[311430527,1705097249167,-500.0,0.00029273,2]
[311430528,1705097249188,-500.0,0.00029273,2]
[311430529,1705097249211,-500.0,0.00029273,2]
[311430530,1705097249234,-500.0,0.00029273,2]
[311430531,1705097249259,-500.0,0.00029273,2]
[311430532,1705097249284,-3198.84,0.00029273,2]
[311430533,1705097249304,-500.0,0.00029273,2]
[311430534,1705097249323,-500.0,0.00029273,2]
[311430535,1705097249343,-500.0,0.00029273,2]
[311430536,1705097249364,-500.0,0.00029273,2]
[311430537,1705097249384,-344.65784846,0.00029273,2]
[311430732,1705097436814,-460.75992736,0.0002744,2]
[311430733,1705097436824,-2159.493391,0.00027441,3]
[311430734,1705097436834,-155.0,0.00028788,2]
[311430735,1705097436843,-1277.68,0.00028998,2]
[311430736,1705097436853,-500.0,0.00028999,2]
[311430737,1705097436862,-580.78019838,0.00028999,2]
[311430738,1705097436872,-500.0,0.00028999,2]
[311430739,1705097436884,-500.0,0.00028999,2]
[311430740,1705097436893,-500.0,0.00028999,2]
[311430741,1705097436902,-350.7271178,0.00028999,2]
[311430742,1705097436912,-500.0,0.00028999,2]
[311430743,1705097436921,-502.88239032,0.00028999,2]
[311430744,1705097436930,-500.0,0.00028999,2]
[311430745,1705097436940,-504.28,0.00028999,2]
[311430746,1705097436950,-500.0,0.00028999,2]
[311430747,1705097436959,-516.9606474,0.00028999,2]
[311430748,1705097436969,-500.0,0.00028999,2]
[311430749,1705097436978,-510.54888702,0.00028999,2]
[311430750,1705097436987,-500.0,0.00028999,2]
[311430751,1705097436997,-591.16032302,0.00028999,2]
[311430752,1705097437006,-500.0,0.00028999,2]
[311430753,1705097437016,-500.0,0.00028999,2]
[311430754,1705097437025,-500.0,0.00028999,2]
[311430755,1705097437035,-400.0,0.00028999,2]
[311430756,1705097437044,-500.0,0.00028999,2]
[311430757,1705097437054,-500.0,0.00028999,2]
[311430758,1705097437063,-500.0,0.00028999,2]
[311430759,1705097437072,-500.0,0.00028999,2]
[311430760,1705097437083,-500.0,0.00028999,2]
[311430761,1705097437093,-500.0,0.00028999,2]
[311430762,1705097437102,-493.76665639,0.00028999,2]
[311430763,1705097437111,-500.0,0.00028999,2]
[311430764,1705097437120,-500.0,0.00028999,2]
[311430765,1705097437136,-500.0,0.00028999,2]
[311430766,1705097437145,-1500.0,0.00029,2]
[311430767,1705097437155,-1277.68,0.00029272,2]
[311430768,1705097437164,-2932.27,0.00029272,2]
[311430769,1705097437174,-500.0,0.00029272,2]
[311430770,1705097437183,-500.0,0.00029272,2]
[311430771,1705097437193,-155.34215154,0.00029273,2]
[311430772,1705097437202,-502.14628969,0.00029273,2]
[311430773,1705097437212,-500.0,0.00029273,2]
[311430774,1705097437221,-216.07223058,0.00029273,2]
[311430775,1705097437230,-500.0,0.00029273,2]
[311430776,1705097437239,-500.0,0.00029273,2]
[311430777,1705097437248,-500.0,0.00029273,2]
[311430778,1705097437257,-500.0,0.00029273,2]
[311430779,1705097437266,-500.0,0.00029273,2]
[311430780,1705097437275,-500.0,0.00029273,2]
[311430781,1705097437283,-345.14406963,0.00029273,2]
[311430782,1705097437295,-154.85593037,0.00029273,2]
[311430783,1705097437306,-500.0,0.00029273,2]
[311430784,1705097437315,-500.0,0.00029273,2]
[311430785,1705097437324,-504.28,0.00029273,2]
[311430786,1705097437335,-483.70402336,0.00029273,2]
[311430787,1705097437344,-585.62139592,0.00029273,2]
[311430788,1705097437354,-261.04615334,0.00029273,2]
[311430789,1705097437364,-3314.65607422,0.00029273,2]
[311430790,1705097437373,-500.0,0.00029273,2]
[311430791,1705097437386,-2304.7489512,0.00029273,2]
[311430792,1705097437398,-1527.90669491,0.00029273,2]
[311430793,1705097437408,-500.0,0.00029273,2]
[311430794,1705097437418,-500.0,0.00029273,2]
[311430795,1705097437427,-271.67925964,0.00029273,2]
[311430796,1705097437436,-500.0,0.00029273,2]
[311430797,1705097437446,-374.08094525,0.00029273,2]
[311430798,1705097437455,-500.0,0.00029273,2]
[311430799,1705097437464,-153.0,0.00029315,2]
[311430800,1705097437474,-168.9180121,0.00029315,2]
[311430801,1705097437483,-153.0,0.00029315,2]
[311430802,1705097437492,-153.0,0.00029315,2]
[311430804,1705097437502,-153.0,0.00029315,2]
[311430806,1705097437511,-153.0,0.00029315,2]
[311430808,1705097437520,-153.0,0.00029315,2]
[311430810,1705097437529,-2532.52,0.0002935,2]
[311430813,1705097437539,-153.0,0.000294,2]
[311430816,1705097437548,-153.0,0.000294,2]
[311430819,1705097437557,-153.0,0.000294,2]
[311430821,1705097437566,-153.0,0.000294,2]
[311430824,1705097437576,-153.0,0.000294,2]
[311430827,1705097437585,-166.666666,0.00029462,2]
[311430829,1705097437593,-155.11612247,0.00029484,2]
[311430832,1705097437603,-6597.97126307,0.0002949,2]
[311430835,1705097437612,-153.0,0.000295,2]
[311430836,1705097437621,-153.0,0.000295,2]
[311430837,1705097437635,-254.3791948,0.00029501,3]
[311430840,1705097437644,-261.70415975,0.00029519,2]
[311430894,1705097438305,-738.29584025,0.00029519,2]
[311430896,1705097438315,-154.953514,0.00029526,2]
[311430898,1705097438324,-154.95351395,0.00029526,2]
[311430900,1705097438333,-154.95351395,0.00029527,2]
[311430902,1705097438343,-154.95351395,0.00029527,2]
[311430904,1705097438351,-1000.0,0.00029528,2]
[311430906,1705097438360,-802.01055448,0.00029531,2]
[311430907,1705097438369,-500.0,0.00029531,2]
[311430909,1705097438383,-624.97480263,0.00029537,3]
[311430911,1705097438395,-145.79519737,0.00029537,3]
[311430913,1705097438404,-642.31,0.00029537,3]
[311430915,1705097438414,-535.25,0.00029537,3]
[311430917,1705097438423,-1000.0,0.00029539,2]
[311430919,1705097438432,-1000.0,0.00029543,2]
[311430921,1705097438441,-87.72248026,0.00029546,2]
[311430923,1705097438452,-1189.95751974,0.00029546,2]
[311430925,1705097438460,-85.04248026,0.00029546,2]
[311431168,1705097441264,-2847.22751974,0.00029546,2]
[311431169,1705097441274,-500.0,0.00029546,2]
[311431170,1705097441283,-366.4580534,0.00029547,2]
[311431171,1705097441293,-30.9088348,0.00029547,2]
[311431172,1705097441305,-469.0911652,0.00029547,2]
[311431173,1705097441314,-327.28842134,0.00029547,2]
[311431174,1705097441324,-602.1,0.00029547,2]
[311431175,1705097441335,-500.0,0.00029547,2]
[311431176,1705097441344,-500.0,0.00029547,2]
[311431177,1705097441355,-500.0,0.00029547,2]
[311431178,1705097441364,-500.0,0.00029547,2]
[311431179,1705097441373,-500.0,0.00029547,2]
[311431180,1705097441386,-500.0,0.00029547,2]
[311431181,1705097441396,-500.0,0.00029547,2]
[311431182,1705097441407,-500.0,0.00029547,2]
[311431183,1705097441416,-500.0,0.00029547,2]
[311431184,1705097441425,-500.0,0.00029547,2]
[311431185,1705097441434,-500.0,0.00029547,2]
[311431186,1705097441444,-500.0,0.00029547,2]
[311431187,1705097441453,-500.0,0.00029547,2]
[311431188,1705097441463,-500.0,0.00029547,2]
[311431190,1705097441472,-500.0,0.00029547,2]
[311431192,1705097441482,-500.0,0.00029547,2]
[311431193,1705097441491,-500.0,0.00029547,2]
[311431194,1705097441501,-504.28,0.00029547,2]
[311431195,1705097441510,-334.96709269,0.00029547,2]
[311431196,1705097441519,-500.0,0.00029547,2]
[311431198,1705097441528,-500.0,0.00029547,2]
[311431200,1705097441537,-1000.0,0.00029558,2]
[311431202,1705097441546,-1000.0,0.00029568,2]
[311431204,1705097441557,-1000.0,0.00029572,2]
[311431206,1705097441566,-1000.0,0.00029579,2]
[311431207,1705097441575,-1000.0,0.000296,2]
[311431209,1705097441584,-153.0,0.000296,2]
[311431210,1705097441593,-153.0,0.000296,2]
[311431211,1705097441602,-150.0,0.00029605,2]
[311431212,1705097441611,-1000.0,0.00029608,2]
[311431213,1705097441620,-500.0,0.00029619,2]
[311431214,1705097441632,-500.0,0.00029619,2]
[311431215,1705097441641,-500.0,0.00029619,2]
[311431216,1705097441650,-500.0,0.00029619,2]
[311431217,1705097441660,-500.0,0.00029619,2]
[311431218,1705097441669,-500.0,0.00029619,2]
[311431219,1705097441678,-500.0,0.00029619,2]
[311431220,1705097441687,-500.0,0.00029619,2]
[311431221,1705097441696,-500.0,0.00029619,2]
[311431227,1705097441815,-500.0,0.00029619,2]
[311431228,1705097441827,-265.0895561,0.00029619,2]
[311431229,1705097441836,-500.0,0.00029619,2]
[311431230,1705097441846,-500.0,0.00029619,2]
[311431231,1705097441855,-500.0,0.00029619,2]
[311431232,1705097441864,-329.27294652,0.00029619,2]
[311431233,1705097441874,-253.47654868,0.0002963,2]
[311431234,1705097441885,-821.56899105,0.0002963,2]
[311431235,1705097441894,-8358.93451009,0.00029632,2]
[311431236,1705097441903,-2918.68572533,0.00029632,2]
[311431237,1705097441912,-404.672001,0.00029632,2]
[311431238,1705097441922,-301.30095178,0.00029632,2]
[311431239,1705097441931,-181.46170404,0.00029632,2]
[311431240,1705097441940,-973.39849881,0.00029632,2]
[311431241,1705097441949,-158.32519524,0.00029632,2]
[311431242,1705097441958,-750.10769861,0.00029632,2]
[311431243,1705097441968,-2414.28318812,0.00029632,2]
[311431244,1705097441980,-2298.29564653,0.00029632,2]
[311431245,1705097441990,-158.61680624,0.00029632,2]
[311431246,1705097442000,-1172.5308552,0.00029632,2]
[311431247,1705097442009,-155.00109654,0.00029632,2]
[311431248,1705097442019,-521.0,0.00029632,2]
[311431249,1705097442029,-158.46233779,0.00029632,2]
[311431250,1705097442039,-168.54559736,0.00029632,2]
[311431251,1705097442048,-947.43868379,0.00029632,2]
[311431252,1705097442058,-261.7761853,0.00029632,2]
[311431253,1705097442067,-3734.85124,0.00029632,2]
[311431254,1705097442077,-7943.71182072,0.00029632,2]
[311431255,1705097442086,-212.96062918,0.00029632,2]
[311431256,1705097442095,-285.7548216,0.00029632,2]
[311431257,1705097442105,-309.84507746,0.00029632,2]
[311431258,1705097442114,-157.21239275,0.00029632,2]
[311431259,1705097442124,-178.51706094,0.00029632,2]
[311431260,1705097442138,-275.44972625,0.00029632,2]
[311431261,1705097442147,-475.40171563,0.00029632,2]
[311431262,1705097442156,-188.96266745,0.00029632,2]
[311431263,1705097442164,-500.0,0.00029633,2]
[311431264,1705097442174,-532.41305287,0.00029633,2]
[311431265,1705097442182,-500.0,0.00029633,2]
[311431266,1705097442192,-500.0,0.00029633,2]
[311431267,1705097442201,-500.0,0.00029633,2]
[311431268,1705097442209,-508.23531577,0.00029633,2]
[311431269,1705097442218,-500.0,0.00029633,2]
[311431270,1705097442228,-500.0,0.00029633,2]
[311431271,1705097442237,-500.0,0.00029633,2]
[311431272,1705097442246,-500.0,0.00029633,2]
[311431273,1705097442255,-319.28218975,0.00029633,2]
[311431274,1705097442264,-500.0,0.00029633,2]
[311431275,1705097442274,-500.0,0.00029633,2]
[311431276,1705097442283,-617.86,0.00029633,2]
[311431277,1705097442293,-500.0,0.00029633,2]
[311431278,1705097442303,-500.0,0.00029633,2]
[311431279,1705097442312,-500.0,0.00029633,2]
[311431280,1705097442322,-500.0,0.00029633,2]
[311431281,1705097442332,-500.0,0.00029633,2]
[311431282,1705097442341,-500.0,0.00029633,2]
[311431283,1705097442350,-500.0,0.00029633,2]
[311431284,1705097442359,-622.36334982,0.00029633,2]
[311431285,1705097442369,-232.73546203,0.00029633,2]
[311431286,1705097442378,-543.82779419,0.00029633,2]
[311431287,1705097442391,-500.0,0.00029633,2]
[311431288,1705097442401,-500.0,0.00029633,2]
[311431289,1705097442410,-508.16948772,0.00029633,2]
[311431290,1705097442420,-500.0,0.00029633,2]
[311431291,1705097442429,-500.0,0.00029633,2]
[311431292,1705097442439,-500.0,0.00029633,2]
[311431293,1705097442448,-500.0,0.00029633,2]
[311431294,1705097442457,-500.0,0.00029633,2]
[311431295,1705097442467,-500.0,0.00029633,2]
[311431296,1705097442476,-500.0,0.00029633,2]
[311431297,1705097442484,-500.0,0.00029633,2]
[311431298,1705097442494,-1000.0,0.00029633,2]
[311431299,1705097442503,-500.0,0.00029633,2]
[311431301,1705097442512,-500.0,0.00029633,2]
[311431303,1705097442521,-500.0,0.00029633,2]
[311431304,1705097442531,-500.0,0.00029633,2]
[311431306,1705097442540,-500.0,0.00029633,2]
[311431307,1705097442549,-500.50039917,0.00029633,2]
[311431310,1705097442558,-500.0,0.00029633,2]
[311431312,1705097442567,-500.0,0.00029633,2]
[311431314,1705097442576,-504.42727557,0.00029633,2]
[311431315,1705097442585,-500.0,0.00029633,2]
[311431316,1705097442594,-500.0,0.00029633,2]
[311431317,1705097442603,-221.18200146,0.00029633,2]
[311431321,1705097442612,-627.1533721,0.00029633,2]
[311431324,1705097442621,-1000.0,0.00029643,2]
[311431327,1705097442634,-1000.0,0.0002965,2]
[311431330,1705097442644,-1000.0,0.00029665,2]
[311431334,1705097442653,-5000.0,0.00029667,5]
[311431337,1705097442662,-1000.0,0.00029668,2]
[311431340,1705097442672,-1000.0,0.00029682,2]
[311431343,1705097442681,-15796.21545895,0.00029688,2]
[311431348,1705097442693,-15856.41186593,0.00029688,2]
[311431351,1705097442702,-1000.0,0.00029696,2]
[311431352,1705097442711,-163.545116,0.000297,2]
[311431354,1705097442720,-952.74896536,0.00029705,2]
[311431506,1705097444263,-500.0,0.00028999,2]
[311431508,1705097444272,-500.0,0.00029273,2]
[311431510,1705097444282,-153.0,0.000294,2]
[311431511,1705097444291,-500.0,0.00029547,2]
[311431513,1705097444300,-47.25103464,0.00029705,2]
[311431514,1705097444311,-425.94720367,0.00029705,2]
[311431516,1705097444323,-1000.0,0.00029713,2]
[311431518,1705097444332,-1000.0,0.00029716,2]
[311431519,1705097444342,-1000.0,0.00029719,2]
[311431522,1705097444351,-1000.0,0.00029727,2]
[311431525,1705097444360,-1000.0,0.00029739,2]
[311431527,1705097444369,-1000.0,0.00029743,2]
[311431531,1705097444379,-1000.0,0.00029745,2]
[311431534,1705097444390,-1000.0,0.00029759,2]
[311431537,1705097444399,-1000.0,0.00029764,2]
[311431540,1705097444409,-1000.0,0.00029765,2]
[311431543,1705097444418,-1000.0,0.00029773,2]
[311431544,1705097444427,-716.30956767,0.00029777,2]
[311431545,1705097444439,-283.69043233,0.00029777,2]
[311431546,1705097444448,-832.53822979,0.00029784,2]
[311431547,1705097444460,-167.46177021,0.00029784,2]
[311431548,1705097444468,-878.34013724,0.00029788,2]
[311431549,1705097444477,-155.29426556,0.00029788,2]
[311431550,1705097444487,-917.00382699,0.00029788,2]
[311431551,1705097444498,-670.22894588,0.00029788,2]
[311431552,1705097444507,-225.87905376,0.00029788,2]
[311431553,1705097444515,-155.18425298,0.00029788,2]
[311431554,1705097444524,-2116.34294434,0.00029788,2]
[311431604,1705097446259,-432.1,0.00028999,2]
[311431606,1705097446270,-67.9,0.00028999,2]
[311431609,1705097446281,-4171.9,0.00029788,2]
[311431611,1705097446292,-240.99396178,0.00029788,2]
[311431613,1705097446301,-1194.12289066,0.00029788,2]
[311431615,1705097446312,-4917.8600325,0.00029788,2]
[311431616,1705097446324,-155.97583988,0.00029788,2]
[311431619,1705097446333,-500.0,0.00029788,2]
[311431620,1705097446342,-500.0,0.00029788,2]
[311431622,1705097446352,-500.0,0.00029788,2]
[311431624,1705097446361,-161.8286803,0.00029788,2]
[311431626,1705097446370,-501.33793308,0.00029788,2]
[311431628,1705097446379,-500.0,0.00029788,2]
[311431630,1705097446394,-500.0,0.00029788,2]
[311431632,1705097446403,-500.0,0.00029788,2]
[311431634,1705097446412,-514.09104851,0.00029788,2]
[311431636,1705097446422,-500.0,0.00029788,2]
[311431638,1705097446431,-500.0,0.00029788,2]
[311431640,1705097446440,-500.0,0.00029788,2]
[311431642,1705097446448,-160.0,0.00029789,10]
[311431644,1705097446457,-161.94694653,0.00029789,10]
[311431646,1705097446466,-903.02,0.00029789,2]
[311431648,1705097446475,-903.02,0.00029789,2]
[311431650,1705097446485,-903.02,0.00029789,2]
[311431652,1705097446494,-903.02,0.00029789,2]
[311431654,1705097446503,-903.02,0.00029789,2]
[311431656,1705097446512,-167.8915193,0.0002979,10]
[311431658,1705097446520,-507.04658453,0.0002979,3]
[311431660,1705097446529,-1133.74871321,0.0002979,7]
[311431662,1705097446538,-166.10900836,0.0002979,2]
[311431663,1705097446547,-190.64320071,0.0002979,2]
[311431664,1705097446556,-155.15506132,0.0002979,2]
[311431665,1705097446565,-268.18622721,0.0002979,2]
[311431666,1705097446574,-90974.54855444,0.0002979,7]
[311431714,1705098356111,-326.84593778,0.00027274,2]
[311431715,1705098356131,-629.2210255,0.00027275,2]
[311431716,1705098356151,-19832.35999552,0.00027463,2]
[311431717,1705098356174,-36861.50938964,0.00027464,3]
[311431718,1705098356195,-514.67519224,0.00027464,3]
[311431719,1705098356215,-166.666666,0.00027472,2]
[311431720,1705098356236,-930.93310079,0.0002769,2]
[311431721,1705098356256,-1167.73,0.00028056,3]
[311431722,1705098356276,-973.1,0.00028056,3]
[311431723,1705098356297,-1168.99,0.00028066,2]
[311431724,1705098356318,-24900.0,0.00028066,2]
[311431725,1705098356338,-1158.9499028,0.00028291,2]
[311431726,1705098356358,-6321.54251973,0.00028301,4]
[311431731,1705098426103,-5289.24632044,0.00027462,2]
[311431732,1705098426126,-500.0,0.00028066,2]
[311431733,1705098426148,-2028.00313906,0.000283,2]
[311431734,1705098426174,-2780.02941384,0.00028301,4]
[311431735,1705098426196,-1261.19770865,0.00028301,2]
[311431736,1705098426219,-1168.99,0.0002834,2]
[311431737,1705098426242,-534.23,0.0002834,2]
[311431738,1705098426264,-1168.99,0.00028613,2]
[311431739,1705098426285,-155.0,0.0002879,2]
[311431740,1705098426309,-1168.99,0.00028887,2]
[311431741,1705098426331,-1207.95845455,0.00028896,2]
[311431742,1705098426356,-473.96096896,0.00028939,2]
[311431743,1705098426382,-183.85435492,0.00028939,2]
[311431744,1705098426416,-367.70911266,0.00028939,2]
[311431745,1705098426442,-941.81679663,0.00028939,2]
[311431746,1705098426464,-153.0,0.00028978,2]
[311431747,1705098426487,-500.0,0.00028997,2]